fUSD/lending_fUSD_20251108
["ID","MTS","AMOUNT","RATE_DAILY","PERIOD"]
[393400645,1762591920615,-93753.06,0.00026786,2]
[393400646,1762591920626,-152.0,0.00026802,4]
[393400647,1762591920637,-1205.44,0.00026904,2]
[393400648,1762591920647,-222.30526043,0.00026987,32]
[393400649,1762591920659,-250.0,0.00027,2]
[393400650,1762591920669,-1021.08103789,0.00027,2]
[393400651,1762591920680,-530.0,0.00027,2]
[393400652,1762591920692,-152.0,0.00027041,5]
[393400653,1762591920703,-265.77,0.00027123,4]
[393400654,1762591920715,-3640.29,0.00027123,2]
[393400655,1762591920727,-318.94,0.0002719,2]
[393400656,1762591920993,-152.0,0.00027281,6]
[393400657,1762591921003,-222.30526043,0.00027304,48]
[393400658,1762591921013,-150.0,0.00027369,2]
[393400659,1762591921023,-162.60120796,0.00027378,2]
[393400660,1762591921033,-4060.01691369,0.0002739,2]
[393400661,1762591921043,-8020.4839602,0.0002739,2]
[393400662,1762591921053,-500.0,0.00027397,10]
[393400663,1762591921064,-293.89412709,0.00027397,2]
[393400664,1762591921074,-1500.0,0.00027397,16]
[393400665,1762591921084,-1428.83,0.00027397,2]
[393400666,1762591921094,-33109.67,0.00027397,2]
[393400667,1762591921104,-512.65,0.00027397,2]
[393400668,1762591921115,-239.343735,0.00027397,30]
[393400669,1762591921126,-300.0,0.00027397,2]
[393400670,1762591921135,-300.000014,0.00027397,31]
[393400671,1762591921146,-1171.28,0.00027397,2]
[393400672,1762591921155,-181.43,0.00027397,10]
[393400673,1762591921165,-156.9481003,0.00027397,5]
[393400674,1762591921175,-158.13174552,0.00027397,5]
[393400675,1762591921186,-448.41,0.000274,7]
[393400676,1762591921195,-1812.35,0.000274,7]
[393400677,1762591921205,-10000.0,0.00027463,7]
[393400678,1762591921215,-542.49785778,0.000275,2]
[393400679,1762591921225,-198.59020601,0.000275,2]
[393400680,1762591921235,-152.0,0.0002752,7]
[393400681,1762591921245,-500.0,0.00027534,10]
[393400682,1762591921256,-222.30526043,0.00027621,63]
[393400683,1762591921266,-500.0,0.00027671,10]
[393400684,1762591921276,-686.6,0.00027671,2]
[393400685,1762591921286,-1936.95,0.00027671,30]
[393400686,1762591921297,-9035.0,0.00027716,2]
[393400687,1762591921307,-152.0,0.00027759,8]
[393400688,1762591921316,-500.0,0.00027808,10]
[393400689,1762591921326,-222.30526043,0.00027938,79]
[393400690,1762591921336,-500.0,0.00027945,10]
[393400691,1762591921347,-466.0,0.00027973,14]
[393400692,1762591921357,-152.0,0.00027998,9]
[393400693,1762591921367,-50223.83753897,0.00028,2]
[393400694,1762591921377,-160.0,0.00028,2]
[393400695,1762591921388,-283.29,0.00028,2]
[393400696,1762591921398,-70427.84569204,0.00028,2]
[393400697,1762591921410,-249603.94000558,0.00028,2]
[393400698,1762591921422,-5000.000001,0.00028,2]
[393400699,1762591921432,-478.09862864,0.00028,30]
[393400700,1762591921442,-151.0,0.00028,2]
[393400701,1762591921452,-151.0,0.00028,2]
[393400702,1762591921463,-204.27343725,0.00028,60]
[393400703,1762591921474,-478.09862864,0.00028,30]
[393400704,1762591921485,-478.09862864,0.00028,10]
[393400705,1762591921495,-304.57056437,0.00028,5]
[393400706,1762591921505,-150.0,0.00028012,2]
[393400707,1762591921515,-150.0,0.00028012,2]
[393400708,1762591921524,-150.0,0.00028012,2]
[393400709,1762591921534,-415.88,0.00028012,2]
[393400710,1762591921544,-415.88,0.00028012,2]
[393400711,1762591921553,-176.64,0.00028012,2]
[393400712,1762591921563,-415.88,0.00028012,2]
[393400713,1762591921573,-353.82,0.00028012,2]
[393400714,1762591921582,-645.63,0.00028012,2]
[393400715,1762591921592,-500.0,0.00028082,10]
[393400716,1762591921602,-1812.35,0.000281,7]
[393400717,1762591921612,-2000.0,0.000281,2]
[393400718,1762591921622,-500.0,0.00028219,10]
[393400719,1762591921631,-152.0,0.00028238,10]
[393400720,1762591921641,-222.30526043,0.00028255,94]
[393400721,1762591921651,-448.41,0.000283,7]
[393400722,1762591921660,-500.0,0.00028356,10]
[393400723,1762591921670,-152.0,0.00028477,11]
[393400724,1762591921679,-313.30212249,0.00028493,10]
[393400725,1762591921689,-151.0,0.000285,2]
[393400726,1762591921699,-222.30526043,0.00028572,110]
[393400727,1762591921710,-152.0,0.00028716,12]
[393400728,1762591921719,-13133.54834702,0.0002875,2]
[393400729,1762591921728,-151.0,0.000288,2]
[393400730,1762591921738,-837.01,0.00028834,2]
[393400731,1762591921748,-163.93,0.00028844,2]
[393400732,1762591921757,-353.92,0.00028844,2]
[393400733,1762591921767,-368.88,0.00028844,2]
[393400734,1762591921776,-353.92,0.00028844,2]
[393400735,1762591921786,-176.98,0.00028844,2]
[393400736,1762591921795,-150.0,0.00028844,2]
[393400737,1762591921805,-176.98,0.00028844,2]
[393400738,1762591921814,-1205.93,0.00028844,2]
[393400739,1762591921824,-150.0,0.00028844,2]
[393400740,1762591921833,-600.0,0.0002888,15]
[393400741,1762591921843,-16581.7065668,0.00028888,2]
[393400742,1762591921852,-152.0,0.00028956,13]
[393400743,1762591921862,-500.0,0.00028994,2]
[393400744,1762591921872,-1926.8076577,0.00029,2]
[393400745,1762591921881,-300.82617854,0.00029,2]
[393400746,1762591921890,-100115.69746685,0.00029,2]
[393400747,1762591921900,-1812.35,0.00029,7]
[393400748,1762591921910,-574.0,0.00029002,2]
[393400749,1762591921920,-3424.0,0.00029002,2]
[393400750,1762591921930,-607.0,0.00029002,2]
[393400751,1762591921939,-1316.0,0.00029002,2]
[393400752,1762591921950,-820.0,0.00029002,2]
[393400753,1762591921960,-1596.0,0.00029002,2]
[393400754,1762591921970,-906.0,0.00029002,2]
[393400755,1762591921980,-812.0,0.00029002,2]
[393400756,1762591921989,-1273.0,0.00029002,2]
[393400757,1762591921999,-6660.0,0.00029002,2]
[393400758,1762591922010,-559.0,0.00029002,2]
[393400759,1762591922020,-2142.0,0.00029002,2]
[393400760,1762591922030,-6477.0,0.00029002,2]
[393400761,1762591922039,-152.0,0.00029195,14]
[393400762,1762591922049,-152.0,0.00029434,15]
[393400763,1762591922059,-1673133.01963366,0.000295,2]
[393400764,1762591922069,-273308.98605483,0.000295,2]
[393400765,1762591922079,-477.03,0.00029599,2]
[393400766,1762591922088,-176.94,0.00029629,2]
[393400767,1762591922098,-2141.8,0.00029629,2]
[393400768,1762591922108,-176.94,0.00029666,2]
[393400769,1762591922117,-150.0,0.00029666,2]
[393400770,1762591922127,-150.0,0.00029666,2]
[393400771,1762591922136,-152.0,0.00029674,16]
[393400772,1762591922146,-459.0,0.00029838,14]
[393400773,1762591922155,-77863.3873496,0.000299,2]
[393400774,1762591922164,-448.41,0.000299,7]
[393400775,1762591922175,-4600.0,0.000299,10]
[393400776,1762591922185,-152.0,0.00029913,17]
[393400777,1762591922195,-234.10235612,0.0002999,2]
[393400778,1762591922205,-5646.23629699,0.0003,2]
[393400779,1762591922216,-4655.83971353,0.0003,2]
[393400780,1762591922225,-19611.96262248,0.0003,2]
[393400781,1762591922234,-2000.0,0.0003,14]
[393400782,1762591922244,-1793.05761065,0.0003,2]
[393400783,1762591922254,-4212.2243655,0.0003,2]
[393400784,1762591922264,-400.0,0.0003,20]
[393400785,1762591922274,-160.83416815,0.0003,2]
[393400786,1762591922283,-1000.0,0.0003,15]
[393400787,1762591922293,-1000.0,0.0003,15]
[393400788,1762591922303,-1000.0,0.0003,15]
[393400789,1762591922312,-875.0,0.0003,19]
[393400790,1762591922322,-160.57,0.0003,3]
[393400791,1762591922331,-606.29532245,0.0003,2]
[393400792,1762591922340,-60678.86114101,0.0003,5]
[393400793,1762591922349,-6066.58561821,0.0003,2]
[393400794,1762591922359,-500.0,0.0003,2]
[393400795,1762591922368,-3312.08313347,0.0003,2]
[393400796,1762591922378,-673.80550275,0.0003,30]
[393400797,1762591922387,-3000.0,0.0003,30]
[393400798,1762591922397,-16500.45678912,0.0003,10]
[393400799,1762591922407,-290.0,0.0003,7]
[393400800,1762591922422,-200.0,0.0003,7]
[393400801,1762591922431,-150.0,0.0003,2]
[393400802,1762591922440,-500.0,0.0003,30]
[393400803,1762591922450,-184.12,0.0003,22]
[393400804,1762591922462,-1058.91028585,0.0003013,2]
[393400805,1762591922472,-13666.68894269,0.0003013,2]
[393400806,1762591922481,-625.43963357,0.0003013,2]
[393400807,1762591922492,-199.02899561,0.0003013,2]
[393400808,1762591922501,-1207.93903954,0.0003013,2]
[393400809,1762591922511,-7628.68334134,0.0003013,2]
[393400810,1762591922520,-162.54223701,0.0003013,20]
[393400811,1762591922529,-1012.29679257,0.0003013,7]
[393400812,1762591922539,-308.00801652,0.0003013,2]
[393400813,1762591922549,-182.47354773,0.0003013,30]
[393400814,1762591922558,-151.0,0.00030136,14]
[393400815,1762591922568,-999.0,0.00030136,2]
[393400816,1762591922578,-1171.28,0.00030137,2]
[393400817,1762591922587,-2930.0,0.00030137,120]
[393400818,1762591922597,-152.0,0.00030152,18]
[393400819,1762591922607,-1812.35,0.000302,7]
[393400820,1762591922616,-3625.33,0.000302,2]
[393400821,1762591922625,-42811.82,0.000302,7]
[393400822,1762591922634,-226.447848,0.000302,120]
[393400823,1762591922644,-239.841422,0.000302,120]
[393400824,1762591922653,-152.0,0.00030392,19]
[393400825,1762591922663,-239.86,0.0003041,7]
[393400826,1762591922672,-150.0,0.00030434,2]
[393400827,1762591922681,-176.94,0.00030439,2]
[393400828,1762591922691,-1205.69,0.00030439,2]
[393400829,1762591922700,-1205.93,0.00030439,2]
[393400830,1762591922710,-4674.0,0.00030464,2]
[393400831,1762591922720,-152.0,0.00030631,20]
[393400832,1762591922729,-920.86,0.00030685,30]
[393400833,1762591922739,-226.447848,0.000308,60]
[393400834,1762591922748,-239.841422,0.000308,60]
[393400835,1762591922758,-2576.22793422,0.0003084,2]
[393400836,1762591922767,-212.0,0.0003084,30]
[393400837,1762591922776,-152.0,0.0003087,21]
[393400838,1762591922786,-170.59320523,0.000309,5]
[393400839,1762591922795,-293.33950907,0.000309,2]
[393400840,1762591922804,-6411.41612704,0.000309,2]
[393400841,1762591922813,-77928.82074358,0.0003095,2]
[393400842,1762591922823,-239.86,0.00030958,8]
[393400843,1762591922833,-79741.70509726,0.00031,2]
[393400844,1762591922842,-3625.33,0.00031,2]
[393400845,1762591922852,-1560242.29970743,0.00031,2]
[393400846,1762591922862,-2367.72828937,0.00031,120]
[393400847,1762591922871,-1812.35,0.000311,7]
[393400848,1762591922880,-152.0,0.0003111,22]
[393400849,1762591922889,-1205.93,0.00031261,2]
[393400850,1762591922898,-1205.93,0.00031261,2]
[393400851,1762591922908,-1215.5,0.00031261,2]
[393400852,1762591922917,-1205.69,0.00031261,2]
[393400853,1762591922927,-415.8,0.00031261,2]
[393400854,1762591922936,-415.88,0.00031304,2]
[393400855,1762591922946,-415.88,0.00031304,2]
[393400856,1762591922955,-415.88,0.00031304,2]
[393400857,1762591922966,-857.57011612,0.00031339,2]
[393400858,1762591922976,-152.0,0.00031349,23]
[393400859,1762591922986,-500.0,0.000314,120]
[393400860,1762591922996,-2253.74008437,0.000314,5]
[393400861,1762591923007,-42811.82,0.000314,7]
[393400862,1762591923017,-7620.36776257,0.0003143,4]
[393400863,1762591923026,-150.0,0.000315,2]
[393400864,1762591923035,-253.66552311,0.000315,2]
[393400865,1762591923045,-194.73229467,0.000315,2]
[393400866,1762591923055,-448.41,0.000315,30]
[393400867,1762591923064,-555.29371026,0.000315,120]
[393400868,1762591923075,-239.86,0.00031506,9]
[393400869,1762591923084,-152.0,0.00031588,24]
[393400870,1762591923094,-3625.33,0.000317,2]
[393400871,1762591923105,-459.0,0.00031703,14]
[393400872,1762591923114,-2000.0,0.000318,2]
[393400873,1762591923123,-500.0,0.00031802,2]
[393400874,1762591923133,-152.0,0.00031827,25]
[393400875,1762591923143,-226.447848,0.00031831,60]
[393400876,1762591923153,-239.841422,0.00031831,60]
[393400877,1762591923163,-1812.35,0.000319,7]
[393400878,1762591923174,-459.0,0.00031969,14]
[393400879,1762591923184,-163.0,0.0003197,14]
[393400880,1762591923194,-1110.49732165,0.00031999,2]
[393400881,1762591923204,-418.0,0.00032,120]
[393400882,1762591923215,-16007.53635488,0.00032,5]
[393400883,1762591923224,-200.0,0.00032,120]
[393400884,1762591923234,-178.90435918,0.00032,2]
[393400885,1762591923245,-985.34765721,0.00032,120]
[393400886,1762591923255,-574.0,0.00032002,2]
[393400887,1762591923264,-3424.0,0.00032002,2]
[393400888,1762591923363,-607.0,0.00032002,2]
[393400889,1762591923374,-1316.0,0.00032002,2]
[393400890,1762591923383,-820.0,0.00032002,2]
[393400891,1762591923393,-1596.0,0.00032002,2]
[393400892,1762591923403,-906.0,0.00032002,2]
[393400893,1762591923416,-812.0,0.00032002,2]
[393400894,1762591923426,-1273.0,0.00032002,2]
[393400895,1762591923436,-6660.0,0.00032002,2]
[393400896,1762591923445,-2142.0,0.00032002,2]
[393400897,1762591923455,-6477.0,0.00032002,2]
[393400898,1762591923468,-239.86,0.00032054,10]
[393400899,1762591923478,-152.0,0.00032067,26]
[393400900,1762591923491,-3305.31337429,0.00032085,2]
[393400901,1762591923505,-169.11,0.00032132,2]
[393400902,1762591923524,-169.11,0.00032132,2]
[393400903,1762591923535,-169.11,0.00032132,2]
[393400904,1762591923545,-169.11,0.00032132,2]
[393400905,1762591923555,-169.11,0.00032132,2]
[393400906,1762591923565,-169.11,0.00032132,2]
[393400907,1762591923577,-169.11,0.00032132,2]
[393400908,1762591923587,-169.11,0.00032132,2]
[393400909,1762591923597,-169.11,0.00032132,2]
[393400910,1762591923607,-169.11,0.00032132,2]
[393400911,1762591923617,-184.75,0.00032132,2]
[393400912,1762591923626,-169.11,0.00032132,2]
[393400913,1762591923636,-169.11,0.00032132,2]
[393400914,1762591923645,-169.11,0.00032132,2]
[393400915,1762591923654,-3606.89,0.000322,2]
[393400916,1762591923664,-649.92660508,0.000322,5]
[393400917,1762591923674,-152.0,0.00032306,27]
[393400918,1762591923683,-5000.0,0.000324,7]
[393400919,1762591923693,-3625.33,0.000324,2]
[393400920,1762591923702,-10000.0,0.00032463,7]
[393400921,1762591923713,-1223.7,0.00032535,2]
[393400922,1762591923722,-152.0,0.00032545,28]
[393400923,1762591923733,-239.86,0.00032602,11]
[393400924,1762591923743,-261.2,0.00032685,30]
[393400925,1762591923753,-1812.35,0.000327,7]
[393400926,1762591923763,-152.0,0.00032785,29]
[393400927,1762591923774,-4762.39629796,0.000328,2]
[393400928,1762591923783,-42811.82,0.000328,7]
[393400929,1762591923793,-226.447848,0.000328,120]
[393400930,1762591923802,-239.841422,0.000328,120]
[393400931,1762591923812,-212.0,0.0003286,30]
[393400932,1762591923821,-226.447848,0.00032862,60]
[393400933,1762591923832,-239.841422,0.00032862,60]
[393400934,1762591923842,-1000.0,0.00032876,2]
[393400935,1762591923851,-1000.0,0.00032876,2]
[393400936,1762591923861,-1000.0,0.00032876,2]
[393400937,1762591923870,-1000.0,0.00032876,2]
[393400938,1762591923880,-1000.0,0.00032876,2]
[393400939,1762591923890,-1000.0,0.00032876,2]
[393400940,1762591923899,-1000.0,0.00032876,2]
[393400941,1762591923909,-1000.0,0.00032876,2]
[393400942,1762591923919,-1000.0,0.00032876,2]
[393400943,1762591923929,-1000.0,0.00032876,2]
[393400944,1762591923938,-1000.0,0.00032876,2]
[393400945,1762591923947,-1000.0,0.00032876,2]
[393400946,1762591923957,-1000.0,0.00032876,2]
[393400947,1762591923968,-1011.56577081,0.00032876,2]
[393400948,1762591923979,-150.0,0.00032876,2]
[393400949,1762591923988,-150.0,0.00032876,2]
[393400950,1762591923999,-150.0,0.00032876,2]
[393400951,1762591924008,-150.0,0.00032876,2]
[393400952,1762591924017,-150.0,0.00032876,2]
[393400953,1762591924027,-150.0,0.00032876,2]
[393400954,1762591924036,-1000.0,0.00032876,2]
[393400955,1762591924046,-1000.0,0.00032876,2]
[393400956,1762591924056,-1000.0,0.00032876,2]
[393400957,1762591924065,-1000.0,0.00032876,2]
[393400958,1762591924074,-1000.0,0.00032876,2]
[393400959,1762591924084,-1000.0,0.00032876,2]
[393400960,1762591924094,-1000.0,0.00032876,2]
[393400961,1762591924104,-1000.0,0.00032876,2]
[393400962,1762591924114,-1000.0,0.00032876,2]
[393400963,1762591924124,-1000.0,0.00032876,2]
[393400964,1762591924133,-1000.0,0.00032876,2]
[393400965,1762591924142,-1000.0,0.00032876,2]
[393400966,1762591924151,-914.55329736,0.00032876,2]
[393400967,1762591924161,-628.94347418,0.00032876,2]
[393400968,1762591924170,-500.0,0.00032876,2]
[393400969,1762591924179,-500.0,0.00032876,2]
[393400970,1762591924188,-500.0,0.00032876,2]
[393400971,1762591924197,-500.0,0.00032876,2]
[393400972,1762591924207,-500.0,0.00032876,2]
[393400973,1762591924218,-500.0,0.00032876,2]
[393400974,1762591924228,-500.0,0.00032876,2]
[393400975,1762591924238,-500.0,0.00032876,2]
[393400976,1762591924247,-500.0,0.00032876,2]
[393400977,1762591924257,-500.0,0.00032876,2]
[393400978,1762591924267,-500.0,0.00032876,2]
[393400979,1762591924276,-500.0,0.00032876,2]
[393400980,1762591924285,-308.12448315,0.00032876,2]
[393400981,1762591924295,-1289.7,0.00032876,2]
[393400982,1762591924304,-1289.7,0.00032876,2]
[393400983,1762591924314,-1289.7,0.00032876,2]
[393400984,1762591924323,-1289.7,0.00032876,2]
[393400985,1762591924332,-1289.7,0.00032876,2]
[393400986,1762591924342,-1289.7,0.00032876,2]
[393400987,1762591924352,-1289.7,0.00032876,2]
[393400988,1762591924361,-1289.7,0.00032876,2]
[393400989,1762591924372,-1289.7,0.00032876,2]
[393400990,1762591924381,-1289.7,0.00032876,2]
[393400991,1762591924389,-1289.7,0.00032876,2]
[393400992,1762591924399,-1289.7,0.00032876,2]
[393400993,1762591924408,-1289.7,0.00032876,2]
[393400994,1762591924422,-1289.7,0.00032876,2]
[393400995,1762591924432,-1289.7,0.00032876,2]
[393400996,1762591924441,-1289.7,0.00032876,2]
[393400997,1762591924450,-1289.7,0.00032876,2]
[393400998,1762591924461,-1289.7,0.00032876,2]
[393400999,1762591924470,-1289.7,0.00032876,2]
[393401000,1762591924479,-1289.7,0.00032876,2]
[393401001,1762591924489,-1289.7,0.00032876,2]
[393401002,1762591924499,-1289.7,0.00032876,2]
[393401003,1762591924508,-1289.7,0.00032876,2]
[393401004,1762591924518,-1289.82507392,0.00032876,2]
[393401005,1762591924528,-200.35403338,0.00032876,10]
[393401006,1762591924538,-500.0,0.00032876,2]
[393401007,1762591924548,-500.0,0.00032876,2]
[393401008,1762591924557,-500.0,0.00032876,2]
[393401009,1762591924566,-500.0,0.00032876,2]
[393401010,1762591924575,-500.0,0.00032876,2]
[393401011,1762591924585,-500.0,0.00032876,2]
[393401012,1762591924595,-500.0,0.00032876,2]
[393401013,1762591924605,-500.0,0.00032876,2]
[393401014,1762591924614,-500.0,0.00032876,2]
[393401015,1762591924624,-500.0,0.00032876,2]
[393401016,1762591924634,-500.0,0.00032876,2]
[393401017,1762591924643,-341.76358799,0.00032876,2]
[393401018,1762591924653,-500.0,0.00032876,2]
[393401019,1762591924662,-500.0,0.00032876,2]
[393401020,1762591924671,-500.0,0.00032876,2]
[393401021,1762591924681,-500.0,0.00032876,2]
[393401022,1762591924691,-500.0,0.00032876,2]
[393401023,1762591924701,-500.0,0.00032876,2]
[393401024,1762591924711,-500.0,0.00032876,2]
[393401025,1762591924720,-500.0,0.00032876,2]
[393401026,1762591924730,-500.0,0.00032876,2]
[393401027,1762591924740,-500.0,0.00032876,2]
[393401028,1762591924749,-500.0,0.00032876,2]
[393401029,1762591924759,-500.0,0.00032876,2]
[393401030,1762591924769,-257.2872538,0.00032876,2]
[393401031,1762591924778,-5902.0,0.00032876,2]
[393401032,1762591924788,-5902.0,0.00032876,2]
[393401033,1762591924798,-5902.0,0.00032876,2]
[393401034,1762591924807,-5902.0,0.00032876,2]
[393401035,1762591924817,-5902.0,0.00032876,2]
[393401036,1762591924827,-5902.0,0.00032876,2]
[393401037,1762591924836,-5902.0,0.00032876,2]
[393401038,1762591924846,-500.0,0.00032876,2]
[393401039,1762591924855,-5902.0,0.00032876,2]
[393401040,1762591924865,-500.0,0.00032876,2]
[393401041,1762591924875,-5902.0,0.00032876,2]
[393401042,1762591924885,-500.0,0.00032876,2]
[393401043,1762591924894,-5902.0,0.00032876,2]
[393401044,1762591924900,-500.0,0.00032876,2]
[393401045,1762591924908,-5902.0,0.00032876,2]
[393401046,1762591924916,-500.0,0.00032876,2]
[393401047,1762591924925,-5902.0,0.00032876,2]
[393401048,1762591924934,-5902.0,0.00032876,2]
[393401049,1762591924944,-5902.0,0.00032876,2]
[393401050,1762591924953,-500.0,0.00032876,2]
[393401051,1762591924962,-5902.0,0.00032876,2]
[393401052,1762591924972,-500.0,0.00032876,2]
[393401053,1762591924982,-5902.0,0.00032876,2]
[393401054,1762591924992,-500.0,0.00032876,2]
[393401055,1762591925001,-5902.0,0.00032876,2]
[393401056,1762591925010,-500.0,0.00032876,2]
[393401057,1762591925020,-5902.0,0.00032876,2]
[393401058,1762591925030,-500.0,0.00032876,2]
[393401059,1762591925039,-5902.0,0.00032876,2]
[393401060,1762591925048,-500.0,0.00032876,2]
[393401061,1762591925058,-5902.0,0.00032876,2]
[393401062,1762591925068,-500.0,0.00032876,2]
[393401063,1762591925077,-5902.0,0.00032876,2]
[393401064,1762591925087,-500.0,0.00032876,2]
[393401065,1762591925096,-5902.0,0.00032876,2]
[393401066,1762591925106,-500.0,0.00032876,2]
[393401067,1762591925115,-5902.0,0.00032876,2]
[393401068,1762591925125,-500.0,0.00032876,2]
[393401069,1762591925135,-5902.08614669,0.00032876,2]
[393401070,1762591925145,-500.0,0.00032876,2]
[393401071,1762591925155,-500.0,0.00032876,2]
[393401072,1762591925164,-500.0,0.00032876,2]
[393401073,1762591925174,-500.0,0.00032876,2]
[393401074,1762591925183,-500.0,0.00032876,2]
[393401075,1762591925193,-500.0,0.00032876,2]
[393401076,1762591925203,-500.0,0.00032876,2]
[393401077,1762591925213,-500.0,0.00032876,2]
[393401078,1762591925223,-500.0,0.00032876,2]
[393401079,1762591925233,-500.0,0.00032876,2]
[393401080,1762591925244,-500.0,0.00032876,2]
[393401081,1762591925255,-194.81433716,0.00032876,2]
[393401082,1762591925264,-337.37,0.00032876,2]
[393401083,1762591925274,-337.37,0.00032876,2]
[393401084,1762591925284,-337.37,0.00032876,2]
[393401085,1762591925293,-337.37,0.00032876,2]
[393401086,1762591925303,-337.37,0.00032876,2]
[393401087,1762591925313,-337.37,0.00032876,2]
[393401088,1762591925323,-337.37,0.00032876,2]
[393401089,1762591925333,-337.37,0.00032876,2]
[393401090,1762591925344,-337.37,0.00032876,2]
[393401091,1762591925354,-337.37,0.00032876,2]
[393401092,1762591925364,-337.37,0.00032876,2]
[393401093,1762591925374,-337.37,0.00032876,2]
[393401094,1762591925383,-999.0,0.00032876,120]
[393401095,1762591925394,-337.37,0.00032876,2]
[393401096,1762591925404,-337.37,0.00032876,2]
[393401097,1762591925415,-337.37,0.00032876,2]
[393401098,1762591925426,-337.37,0.00032876,2]
[393401099,1762591925436,-337.37,0.00032876,2]
[393401100,1762591925446,-337.37,0.00032876,2]
[393401101,1762591925456,-337.37,0.00032876,2]
[393401102,1762591925467,-337.37,0.00032876,2]
[393401103,1762591925478,-337.37,0.00032876,2]
[393401104,1762591925493,-337.37,0.00032876,2]
[393401105,1762591925514,-337.37,0.00032876,2]
[393401106,1762591925532,-337.56370281,0.00032876,2]
[393401107,1762591925542,-359.05046494,0.00032876,2]
[393401108,1762591925552,-405.86170368,0.00032876,2]
[393401109,1762591925561,-500.0,0.00032876,2]
[393401110,1762591925571,-500.0,0.00032876,2]
[393401111,1762591925581,-382.19554656,0.00032876,2]
[393401112,1762591925590,-500.0,0.00032876,2]
[393401113,1762591925600,-500.0,0.00032876,2]
[393401114,1762591925611,-500.0,0.00032876,2]
[393401115,1762591925621,-185.75296322,0.00032876,2]
[393401116,1762591925631,-498.11072982,0.00032876,2]
[393401117,1762591925641,-500.0,0.00032876,2]
[393401118,1762591925651,-500.0,0.00032876,2]
[393401119,1762591925660,-358.4199089,0.00032876,2]
[393401120,1762591925671,-500.0,0.00032876,2]
[393401121,1762591925681,-500.0,0.00032876,2]
[393401122,1762591925691,-500.0,0.00032876,2]
[393401123,1762591925700,-500.0,0.00032876,2]
[393401124,1762591925710,-500.0,0.00032876,2]
[393401125,1762591925720,-500.0,0.00032876,2]
[393401126,1762591925730,-500.0,0.00032876,2]
[393401127,1762591925740,-500.0,0.00032876,2]
[393401128,1762591925749,-281.36688958,0.00032876,2]
[393401129,1762591925759,-500.0,0.00032876,2]
[393401130,1762591925770,-224.35074581,0.00032876,2]
[393401131,1762591925780,-500.0,0.00032876,2]
[393401132,1762591925790,-500.0,0.00032876,2]
[393401133,1762591925799,-500.0,0.00032876,2]
[393401134,1762591925809,-500.0,0.00032876,2]
[393401135,1762591925819,-500.0,0.00032876,2]
[393401136,1762591925829,-429.53967072,0.00032876,2]
[393401137,1762591925839,-500.0,0.00032876,2]
[393401138,1762591925849,-500.0,0.00032876,2]
[393401139,1762591925859,-500.0,0.00032876,2]
[393401140,1762591925868,-500.0,0.00032876,2]
[393401141,1762591925879,-500.0,0.00032876,2]
[393401142,1762591925889,-500.0,0.00032876,2]
[393401143,1762591925899,-500.0,0.00032876,2]
[393401144,1762591925909,-500.0,0.00032876,2]